[Event "20th Karpov Poikovsky 2019"]
[Site "Poikovsky"]
[Date "2019.06.11"]
[Round "6.4"]
[White "Kovalev, Vladislav"]
[Black "Esipenko, Andrey"]
[Result "0-1"]
[ECO "C88"]
[WhiteElo "2661"]
[BlackElo "2611"]
[Annotator "ChessBase"]
[PlyCount "121"]
[EventDate "2019.06.06"]
[EventType "tourn"]
[EventCountry "RUS"]
[SourceTitle "playchess.com"]
[Source "ChessBase"]
[SourceQuality "1"]
[TimeControl "40/6000+30:20/3000+30:900+30"]

1. e4 {[%emt 0:00:12]} e5 {[%emt 0:00:16]} 2. Nf3 {[%emt 0:00:18]} Nc6 {[%emt 0:00:07]} 3. Bb5 {[%emt 0:00:23]} a6 {[%emt 0:00:15]} 4. Ba4 {[%emt 0:00:04]} Nf6 {[%emt 0:00:06]} 5. O-O {[%emt 0:00:05]} Be7 {[%emt 0:00:09]} 6. Re1 {[%emt 0:00:32]} b5 {[%emt 0:00:25]} 7. Bb3 {[%emt 0:00:04]} O-O {[%emt 0:00:18]} 8. h3 {[%emt 0:03:35]} Bb7 {[%emt 0:00:17]} 9. d3 {[%emt 0:00:20]} d5 {[%emt 0:00:13]} 10. exd5 {[%emt 0:01:41]} Nxd5 {[%emt 0:00:03]} 11. Nxe5 {[%emt 0:00:50]} Nxe5 {[%emt 0:00:34]} 12. Rxe5 {[%emt 0:00:05]} Qd6 {[%emt 0:00:02]} 13. Re1 {[%emt 0:02:15]} Rae8 {[%emt 0:00:09]} 14. Nd2 {[%emt 0:03:50]} c5 {[%emt 0:00:08]} 15. Ne4 {[%emt 0:20:35]} Qc6 {[%emt 0:00:07]} 16. c4 {[%emt 0:05:33]} Nb6 {[%emt 0:00:06]} 17. cxb5 {[%emt 0:29:56]} axb5 {[%emt 0:00:05]} 18. Qf3 {[%emt 0:06:10]} c4 {[%emt 0:07:03]} 19. Bc2 {[%emt 0:07:10]} Qd7 {[%emt 0:57:29]} 20. Qg3 {[%emt 0:05:35]} f5 {[%emt 0:09:21]} 21. Ng5 {[%emt 0:06:27]} Nd5 {[%emt 0:14:41]} 22. dxc4 {[%emt 0:08:42]} Bd6 {[%emt 0:00:28]} 23. f4 {[%emt 0:00:06]} Rxe1+ {[%emt 0:01:03]} 24. Qxe1 {[%emt 0:00:01]} Re8 {[%emt 0:00:45]} 25. Qh4 {[%emt 0:02:56]} Nf6 {[%emt 0:00:20]} 26. Qf2 {[%emt 0:03:01]} Qc7 {[%emt 0:10:54]} 27. b4 {[%emt 0:00:01]} Bxb4 {[%emt 0:01:34]} 28. Bb2 {[%emt 0:00:01]} Bc5 {[%emt 0:04:14]} 29. Bd4 {[%emt 0:00:01]} Bxd4 {[%emt 0:01:12]} 30. Qxd4 {[%emt 0:00:02]} h6 {[%emt 0:00:16]} 31. Nf3 {[%emt 0:02:39]} Bxf3 {[%emt 0:00:01]} 32. gxf3 {[%emt 0:00:07]} bxc4 {[%emt 0:00:09]} 33. Rd1 {[%emt 0:01:34]} Kh8 {[%emt 0:00:34]} 34. Bxf5 {[%emt 0:00:29]} Nh5 {[%emt 0:00:08]} 35. Qd6 {[%emt 0:01:38]} Qa7+ {[%emt 0:01:22]} 36. Qd4 {[%emt 0:00:01]} Qa5 {[%emt 0:01:06]} 37. Be4 {[%emt 0:00:59]} Nxf4 {[%emt 0:00:36]} 38. Qxc4 {[%emt 0:00:27]} Qg5+ {[%emt 0:00:31]} 39. Kf2 {[%emt 0:00:21]} Nxh3+ {[%emt 0:01:02]} 40. Ke2 {[%emt 0:00:00]} Nf4+ {[%emt 0:00:00]} 41. Kf2 {[%emt 0:08:27]} Nh3+ {[%emt 0:07:54]} 42. Ke2 {[%emt 0:00:54]} Qg2+ {[%emt 0:00:26]} 43. Ke3 {[%emt 0:00:36]} Qf2+ {[%emt 0:06:22]} 44. Kd3 {[%emt 0:00:12]} Nf4+ {[%emt 0:00:17]} 45. Kc3 {[%emt 0:00:43]} Ne2+ {[%emt 0:00:20]} 46. Kc2 {[%emt 0:14:13]} Nd4+ {[%emt 0:00:49]} 47. Kc1 {[%emt 0:05:29]} Nxf3 {[%emt 0:04:47]} 48. Bc2 {[%emt 0:02:41]} Ng1 {[%emt 0:09:39]} 49. Kb1 {[%emt 0:08:08]} Ne2 {[%emt 0:01:58]} 50. Qd3 {[%emt 0:03:43]} Qb6+ {[%emt 0:06:26]} 51. Bb3 {[%emt 0:00:04]} Qf6 {[%emt 0:00:41]} 52. Qd7 {[%emt 0:02:12]} Rf8 {[%emt 0:01:45]} 53. Kc2 {[%emt 0:02:31]} Qc3+ {[%emt 0:07:48]} 54. Kb1 {[%emt 0:00:00]} Rc8 {[%emt 0:03:35]} 55. Qe7 {[%emt 0:06:04]} Nd4 {[%emt 0:00:51]} 56. Qe5 {[%emt 0:00:31]} Rd8 {[%emt 0:02:28]} 57. Qe7 {[%emt 0:02:33]} Rb8 {[%emt 0:00:29]} 58. Rc1 {[%emt 0:00:42]} Qd3+ {[%emt 0:00:23]} 59. Kb2 {[%emt 0:00:20]} Qd2+ {[%emt 0:00:16] Qe4 Qc3+} 60. Kb1 Rd8 61. Rd1 0-1

[Event "20th Karpov Poikovsky 2019"]
[Site "Poikovsky"]
[Date "2019.06.14"]
[Round "8.5"]
[White "Kovalev, Vladislav"]
[Black "Artemiev, Vladislav"]
[Result "0-1"]
[ECO "B52"]
[WhiteElo "2661"]
[BlackElo "2761"]
[Annotator "RC"]
[PlyCount "76"]
[EventDate "2019.06.06"]
[EventType "tourn"]
[EventCountry "RUS"]
[SourceTitle "playchess.com"]
[Source "ChessBase"]
[SourceQuality "1"]
[TimeControl "40/6000+30:20/3000+30:900+30"]

1. e4 {[%emt 0:00:03]} c5 {[%emt 0:02:10]} 2. Nf3 {[%emt 0:00:12]} d6 {[%emt 0:00:13]} 3. Bb5+ {[%emt 0:01:10]} Bd7 {[%emt 0:00:19]} 4. Bxd7+ {[%emt 0:00:11]} Nxd7 {[%emt 0:00:19]} 5. c4 {[%emt 0:06:04]} Ngf6 {[%emt 0:02:29]} 6. Nc3 {[%emt 0:00:08]} Rc8 {[%emt 0:06:07]} 7. O-O {[%emt 0:00:28]} g6 {[%emt 0:00:13]} 8. Qe2 {[%emt 0:06:23]} Bg7 {[%emt 0:00:23]} 9. d4 {[%emt 0:01:34]} cxd4 {[%emt 0:00:15]} 10. Nxd4 {[%emt 0:00:02]} O-O {[%emt 0:00:44]} 11. Be3 {[%emt 0:02:42]} a6 {[%emt 0:10:00]} 12. Rac1 {[%emt 0:06:47]} Qa5 {[%emt 0:16:20]} 13. f3 {[%emt 0:13:20]} e6 {[%emt 0:16:33]} 14. a3 {[%emt 0:15:27]} Ne5 {[%emt 0:09:01]} 15. Nb3 {[%emt 0:13:32]} Qc7 {[%emt 0:00:18]} 16. Nd2 {[%emt 0:02:18]} Rfe8 {[%emt 0:07:21]} 17. Kh1 {[%emt 0:04:06]} d5 {[%emt 0:07:12]} 18. cxd5 {[%emt 0:05:55]} exd5 {[%emt 0:02:02]} 19. f4 {[%emt 0:21:36]} Neg4 {[%emt 0:00:47]} 20. e5 {[%emt 0:01:12]} Nxe3 {[%emt 0:12:06]} 21. Qxe3 {[%emt 0:00:03]} Ng4 {[%emt 0:00:57]} 22. Qf3 {[%emt 0:00:42]} Qd7 {[%emt 0:02:43]} 23. Rcd1 {[%emt 0:02:18]} d4 {[%emt 0:04:11]} 24. Nde4 {[%emt 0:01:10]} f5 {[%emt 0:04:37]} 25. Ng3 {[%emt 0:04:31]} Qd8 {[%emt 0:00:47]} 26. Nce2 {[%emt 0:00:33]} Qh4 {[%emt 0:00:10]} 27. h3 {[%emt 0:00:18]} Ne3 {[%emt 0:00:03]} 28. Nxd4 {[%emt 0:00:22]} Nxf1 {[%emt 0:00:25]} 29. Nxf1 {[%emt 0:00:45]} Rcd8 {[%emt 0:00:19]} 30. Qe3 {[%emt 0:00:35]} Bh6 {[%emt 0:00:49]} 31. Qb3+ {[%emt 0:00:30]} Kh8 {[%emt 0:00:05]} 32. g3 {[%emt 0:00:27]} Qxh3+ {[%emt 0:00:08]} 33. Kg1 {[%emt 0:00:11]} Bf8 {[%emt 0:03:11]} 34. e6 {[%emt 0:00:42]} Bc5 {[%emt 0:01:22]} 35. Qe3 {[%emt 0:00:28]} Kg8 {[%emt 0:00:34]} 36. b4 {[%emt 0:00:25]} Ba7 {[%emt 0:00:55]} 37. e7 {[%emt 0:00:48]} Rd6 {[%emt 0:01:02]} 38. Kf2 {[%emt 0:00:16]} Qh1 {[%emt 0:00:32]} 0-1